fUSD/lending_fUSD_20240205
["ID","MTS","AMOUNT","RATE_DAILY","PERIOD"]
[313303720,1707127853224,-553.14896325,0.00041917,7]
[313303721,1707127853234,-500.0,0.00041917,7]
[313303722,1707127853244,-869.02,0.00041917,7]
[313303723,1707127853255,-500.0,0.00041917,7]
[313303724,1707127853265,-500.0,0.00041917,7]
[313303725,1707127853275,-159.80134386,0.00041917,7]
[313303726,1707127853284,-500.0,0.00041917,7]
[313303727,1707127853294,-1336.9,0.00041917,7]
[313303728,1707127853304,-500.0,0.00041917,7]
[313303729,1707127853314,-1664.03,0.00041917,7]
[313303730,1707127853323,-500.0,0.00041917,7]
[313303731,1707127853332,-647.88588597,0.00041917,7]
[313303732,1707127853342,-500.0,0.00041917,7]
[313303733,1707127853352,-179.64957962,0.00041917,7]
[313303734,1707127853361,-500.0,0.00041917,7]
[313303735,1707127853371,-536.79118588,0.00041917,7]
[313303736,1707127853380,-522.17,0.00041917,7]
[313303737,1707127853390,-911.82,0.00041917,7]
[313303738,1707127853400,-500.0,0.00041917,7]
[313303739,1707127853410,-876.24,0.00041917,7]
[313303740,1707127853419,-1208.95,0.00041917,7]
[313303741,1707127853428,-500.0,0.00041917,7]
[313303742,1707127853438,-565.00364892,0.00041917,7]
[313303743,1707127853447,-500.0,0.00041917,7]
[313303744,1707127853457,-500.0,0.00041917,7]
[313303745,1707127853467,-500.0,0.00041917,7]
[313303746,1707127853476,-2208.28,0.00041917,5]
[313303747,1707127853486,-991.16,0.00041917,7]
[313303748,1707127853495,-500.0,0.00041917,7]
[313303749,1707127853506,-500.0,0.00041917,7]
[313303750,1707127853516,-500.0,0.00041917,7]
[313303751,1707127853526,-500.0,0.00041917,7]
[313303752,1707127853536,-4873.25,0.00041917,7]
[313303753,1707127853545,-500.0,0.00041917,7]
[313303754,1707127853555,-500.0,0.00041917,7]
[313303755,1707127853564,-1507.15,0.00041917,7]
[313303756,1707127853573,-500.0,0.00041917,7]
[313303757,1707127853583,-500.0,0.00041917,7]
[313303758,1707127853592,-500.0,0.00041917,7]
[313303759,1707127853601,-500.0,0.00041917,7]
[313303760,1707127853610,-724.44,0.00041917,7]
[313303761,1707127853620,-890.52,0.00041917,7]
[313303762,1707127853629,-500.0,0.00041917,7]
[313303763,1707127853639,-829.46,0.00041917,7]
[313303764,1707127853649,-611.71,0.00041917,7]
[313303765,1707127853658,-500.0,0.00041917,7]
[313303766,1707127853668,-500.0,0.00041917,7]
[313303767,1707127853677,-500.0,0.00041917,7]
[313303768,1707127853686,-605.40837303,0.00041917,7]
[313303769,1707127853695,-556.31,0.00041917,7]
[313303770,1707127853705,-500.0,0.00041917,7]
[313303771,1707127853714,-687.93,0.00041917,7]
[313303772,1707127853723,-832.51,0.00041917,7]
[313303773,1707127853732,-551.81623443,0.00041917,7]
[313303774,1707127853742,-456.99294767,0.00041917,7]
[313303775,1707127853751,-871.11,0.00041917,7]
[313303776,1707127853760,-500.0,0.00041917,7]
[313303777,1707127853770,-500.0,0.00041917,7]
[313303778,1707127853779,-1243.36,0.00041917,7]
[313303779,1707127853788,-500.0,0.00041917,7]
[313303780,1707127853797,-151.82752414,0.00041917,7]
[313303781,1707127853806,-3012.41,0.00041917,7]
[313303782,1707127853815,-500.0,0.00041917,7]
[313303783,1707127853824,-500.0,0.00041917,7]
[313303784,1707127853833,-590.23,0.00041917,7]
[313303785,1707127853842,-558.79349599,0.00041917,7]
[313303786,1707127853851,-264.67701352,0.00041917,7]
[313303787,1707127853860,-327.23378286,0.00041917,7]
[313303788,1707127853869,-500.0,0.00041917,7]
[313303789,1707127853878,-500.0,0.00041917,7]
[313303790,1707127853887,-500.0,0.00041917,7]
[313303791,1707127853896,-500.0,0.00041917,7]
[313303792,1707127853905,-500.0,0.00041917,7]
[313303793,1707127853914,-500.0,0.00041917,7]
[313303794,1707127853923,-3014.28,0.00041917,7]
[313303795,1707127853933,-165.81530068,0.00041917,7]
[313303796,1707127853942,-502.7297827,0.00041917,7]
[313303797,1707127853952,-299.54184828,0.00041917,7]
[313303798,1707127853961,-621.05,0.00041917,7]
[313303799,1707127853970,-589.53,0.00041917,7]
[313303800,1707127853979,-621.80934395,0.00041917,7]
[313303801,1707127853989,-500.0,0.00041917,7]
[313303802,1707127853999,-500.0,0.00041917,7]
[313303803,1707127854008,-531.30899534,0.00041917,7]
[313303804,1707127854017,-534.62394574,0.00041917,7]
[313303805,1707127854026,-500.0,0.00041917,7]
[313303806,1707127854035,-830.56,0.00041917,7]
[313303807,1707127854044,-1902.12,0.00041917,7]
[313303808,1707127854054,-1035.44,0.00041917,7]
[313303809,1707127854064,-2847.02,0.00041917,7]
[313303810,1707127854073,-807.95,0.00041917,7]
[313303811,1707127854082,-500.0,0.00041917,7]
[313303812,1707127854092,-500.0,0.00041917,7]
[313303813,1707127854101,-599.41935548,0.00041917,7]
[313303814,1707127854111,-500.0,0.00041917,7]
[313303815,1707127854120,-500.0,0.00041917,7]
[313303816,1707127854129,-500.0,0.00041917,7]
[313303817,1707127854138,-500.0,0.00041917,7]
[313303818,1707127854147,-500.0,0.00041917,7]
[313303819,1707127854156,-500.0,0.00041917,7]
[313303820,1707127854165,-518.08065978,0.00041917,7]
[313303821,1707127854175,-536.86,0.00041917,7]
[313303822,1707127854187,-2651.98,0.00041917,7]
[313303823,1707127854196,-166.50273407,0.00041917,7]
[313303824,1707127854206,-500.0,0.00041917,7]
[313303825,1707127854214,-500.0,0.00041917,7]
[313303826,1707127854225,-500.0,0.00041917,7]
[313303827,1707127854234,-500.0,0.00041917,7]
[313303828,1707127854243,-521.68690562,0.00041917,7]
[313303829,1707127854252,-1214.43,0.00041917,7]
[313303830,1707127854262,-534.511832,0.00041917,7]
[313303831,1707127854273,-500.0,0.00041917,7]
[313303832,1707127854282,-753.45,0.00041917,7]
[313303833,1707127854291,-500.0,0.00041917,7]
[313303834,1707127854300,-500.0,0.00041917,7]
[313303835,1707127854309,-622.87,0.00041917,7]
[313303836,1707127854318,-500.0,0.00041917,7]
[313303837,1707127854327,-1152.32,0.00041917,7]
[313303838,1707127854336,-547.94380905,0.00041917,7]
[313303839,1707127854345,-1196.94,0.00041917,7]
[313303840,1707127854354,-544.28402325,0.00041917,7]
[313303841,1707127854363,-500.0,0.00041917,7]
[313303842,1707127854372,-500.0,0.00041917,7]
[313303843,1707127854382,-500.0,0.00041917,7]
[313303844,1707127854391,-500.0,0.00041917,7]
[313303845,1707127854400,-500.0,0.00041917,7]
[313303846,1707127854410,-530.27,0.00041917,7]
[313303847,1707127854419,-525.01,0.00041917,7]
[313303848,1707127854428,-285.04,0.00041917,7]
[313303849,1707127854437,-500.0,0.00041917,7]
[313303850,1707127854447,-500.0,0.00041917,7]
[313303851,1707127854457,-1136.73,0.00041917,7]
[313303852,1707127854466,-500.0,0.00041917,7]
[313303853,1707127854475,-500.0,0.00041917,7]
[313303854,1707127854484,-573.27055987,0.00041917,7]
[313303855,1707127854493,-500.0,0.00041917,7]
[313303856,1707127854502,-500.0,0.00041917,7]
[313303857,1707127854512,-500.0,0.00041917,7]
[313303858,1707127854521,-768.14,0.00041917,7]
[313303859,1707127854530,-500.0,0.00041917,7]
[313303860,1707127854539,-500.0,0.00041917,7]
[313303861,1707127854548,-717.13,0.00041917,7]
[313303862,1707127854558,-500.0,0.00041917,7]
[313303863,1707127854567,-1043.92,0.00041917,7]
[313303864,1707127854576,-500.0,0.00041917,7]
[313303865,1707127854585,-500.0,0.00041917,7]
[313303866,1707127854594,-500.0,0.00041917,7]
[313303867,1707127854603,-504.56855999,0.00041917,7]
[313303868,1707127854611,-427.95040789,0.00041917,7]
[313303869,1707127854620,-153.54606209,0.00041917,7]
[313303870,1707127854629,-179.45509719,0.00041917,7]
[313303871,1707127854638,-500.0,0.00041917,7]
[313303872,1707127854647,-500.0,0.00041917,7]
[313303873,1707127854657,-567.71,0.00041917,7]
[313303874,1707127854666,-2573.61,0.00041917,7]
[313303875,1707127854675,-500.0,0.00041917,7]
[313303876,1707127854684,-732.21,0.00041917,7]
[313303877,1707127854693,-2569.02,0.00041917,7]
[313303878,1707127854702,-500.0,0.00041917,7]
[313303879,1707127854712,-585.77,0.00041917,7]
[313303880,1707127854721,-500.0,0.00041917,7]
[313303881,1707127854729,-500.0,0.00041917,7]
[313303882,1707127854738,-500.0,0.00041917,7]
[313303883,1707127854747,-500.0,0.00041917,7]
[313303884,1707127854756,-500.0,0.00041917,7]
[313303885,1707127854865,-500.0,0.00041917,7]
[313303886,1707127854875,-500.0,0.00041917,7]
[313303887,1707127854884,-500.0,0.00041917,7]
[313303888,1707127854893,-500.0,0.00041917,7]
[313303889,1707127854903,-500.0,0.00041917,7]
[313303890,1707127854912,-500.0,0.00041917,7]
[313303891,1707127854921,-500.0,0.00041917,7]
[313303892,1707127854930,-500.0,0.00041917,7]
[313303893,1707127854940,-500.0,0.00041917,7]
[313303894,1707127854949,-500.0,0.00041917,7]
[313303895,1707127854959,-520.79,0.00041917,7]
[313303896,1707127854968,-500.0,0.00041917,7]
[313303897,1707127854977,-500.0,0.00041917,7]
[313303898,1707127854986,-1414.46,0.00041917,7]
[313303899,1707127854996,-500.0,0.00041917,7]
[313303900,1707127855005,-655.39,0.00041917,7]
[313303901,1707127855014,-842.26,0.00041917,7]
[313303902,1707127855023,-500.0,0.00041917,7]
[313303903,1707127855032,-500.0,0.00041917,7]
[313303904,1707127855042,-500.0,0.00041917,7]
[313303905,1707127855052,-664.86,0.00041917,7]
[313303906,1707127855061,-500.0,0.00041917,7]
[313303907,1707127855071,-1278.72,0.00041917,7]
[313303908,1707127855080,-500.0,0.00041917,7]
[313303909,1707127855090,-606.87,0.00041917,7]
[313303910,1707127855099,-500.0,0.00041917,7]
[313303911,1707127855108,-850.58,0.00041917,7]
[313303912,1707127855118,-776.81,0.00041917,7]
[313303913,1707127855127,-500.0,0.00041917,7]
[313303914,1707127855137,-500.0,0.00041917,7]
[313303915,1707127855147,-500.0,0.00041917,7]
[313303916,1707127855156,-500.0,0.00041917,7]
[313303917,1707127855166,-685.65,0.00041917,7]
[313303918,1707127855175,-500.0,0.00041917,7]
[313303919,1707127855187,-524.3,0.00041917,7]
[313303920,1707127855197,-500.0,0.00041917,7]
[313303921,1707127855206,-500.0,0.00041917,7]
[313303922,1707127855215,-500.0,0.00041917,7]
[313303923,1707127855224,-500.0,0.00041917,7]
[313303924,1707127855233,-1060.32,0.00041917,7]
[313303925,1707127855242,-1737.35,0.00041917,7]
[313303926,1707127855251,-500.0,0.00041917,7]
[313303927,1707127855263,-500.0,0.00041917,7]
[313303928,1707127855273,-500.0,0.00041917,2]
[313303929,1707127855282,-500.0,0.00041917,7]
[313303930,1707127855291,-500.0,0.00041917,7]
[313303931,1707127855300,-500.0,0.00041917,7]
[313303932,1707127855309,-781.78,0.00041917,7]
[313303933,1707127855318,-500.0,0.00041917,7]
[313303934,1707127855327,-500.0,0.00041917,7]
[313303935,1707127855336,-824.44,0.00041917,7]
[313303936,1707127855346,-500.0,0.00041917,7]
[313303937,1707127855355,-500.0,0.00041917,7]
[313303938,1707127855364,-500.0,0.00041917,7]
[313303939,1707127855374,-647.70776745,0.00041917,7]
[313303940,1707127855383,-500.0,0.00041917,7]
[313303941,1707127855392,-500.0,0.00041917,7]
[313303942,1707127855401,-3430.5,0.00041917,7]
[313303943,1707127855410,-500.0,0.00041917,7]
[313303944,1707127855419,-597.33388354,0.00041917,2]
[313303945,1707127855429,-500.0,0.00041917,7]
[313303946,1707127855438,-500.0,0.00041917,7]
[313303947,1707127855447,-1266.59,0.00041917,7]
[313303948,1707127855456,-2414.76,0.00041917,5]
[313303949,1707127855465,-500.0,0.00041917,7]
[313303950,1707127855474,-500.0,0.00041917,7]
[313303951,1707127855485,-500.0,0.00041917,7]
[313303952,1707127855494,-539.59460043,0.00041917,7]
[313303953,1707127855504,-585.33,0.00041917,7]
[313303954,1707127855513,-1135.81,0.00041917,7]
[313303955,1707127855522,-500.0,0.00041917,7]
[313303956,1707127855531,-1049.13,0.00041917,7]
[313303957,1707127855540,-10927.31,0.00041917,7]
[313303958,1707127855549,-500.0,0.00041917,7]
[313303959,1707127855559,-594.74140691,0.00041917,7]
[313303960,1707127855568,-500.0,0.00041917,7]
[313303961,1707127855577,-419.62320577,0.00041917,2]
[313303962,1707127855586,-500.0,0.00041917,7]
[313303963,1707127855595,-162.73999049,0.00042,4]
[313303964,1707127855604,-643.8910266,0.00042009,7]
[313303965,1707127855613,-500.0,0.0004206,2]
[313303966,1707127855622,-1500.0,0.00042113,4]
[313303967,1707127855631,-150.0,0.00042113,30]
[313303968,1707127855640,-500.0,0.00042113,120]
[313303969,1707127855649,-200.0,0.00042215,2]
[313303970,1707127855658,-500.0,0.00042292,2]
[313303971,1707127855668,-189.17,0.00042312,2]
[313303972,1707127855677,-166.14041328,0.0004246,30]
[313303973,1707127855686,-500.0,0.00042525,2]
[313303974,1707127855695,-200.0,0.00042525,2]
[313303975,1707127855704,-1751.86,0.0004262,52]
[313303976,1707127855713,-500.0,0.0004262,7]
[313303977,1707127855722,-500.0,0.00042621,7]
[313303978,1707127855731,-540.92933646,0.00042621,7]
[313303979,1707127855740,-500.0,0.00042621,7]
[313303980,1707127855749,-529.31515537,0.00042621,7]
[313303981,1707127855759,-500.0,0.00042621,7]
[313303982,1707127855768,-500.0,0.00042621,7]
[313303983,1707127855778,-500.0,0.00042621,7]
[313303984,1707127855787,-500.0,0.00042621,7]
[313303985,1707127855796,-633.84709136,0.00042621,7]
[313303986,1707127855805,-154.42953784,0.00042621,7]
[313303987,1707127855814,-500.0,0.00042621,7]
[313303988,1707127855823,-500.0,0.00042621,7]
[313303989,1707127855832,-500.0,0.00042621,7]
[313303990,1707127855841,-542.4819708,0.00042621,7]
[313303991,1707127855850,-500.0,0.00042621,7]
[313303992,1707127855859,-500.0,0.00042621,7]
[313303993,1707127855868,-542.39538366,0.00042621,7]
[313303994,1707127855877,-1000.0,0.00042621,7]
[313303995,1707127855886,-574.81526778,0.00042621,7]
[313303996,1707127855895,-500.0,0.00042621,7]
[313303997,1707127855904,-500.0,0.00042621,7]
[313303998,1707127855913,-448.26089622,0.00042621,7]
[313303999,1707127855923,-1000.0,0.00042621,7]
[313304000,1707127855932,-500.0,0.00042621,7]
[313304001,1707127855941,-500.0,0.00042621,7]
[313304002,1707127855950,-500.0,0.00042621,7]
[313304003,1707127855960,-618.54018318,0.00042621,7]
[313304004,1707127855969,-500.0,0.00042621,7]
[313304005,1707127855979,-500.0,0.00042621,7]
[313304006,1707127855988,-544.56652206,0.00042621,7]
[313304007,1707127855997,-519.16054841,0.00042621,7]
[313304008,1707127856007,-500.0,0.00042621,7]
[313304009,1707127856016,-523.89969801,0.00042621,7]
[313304010,1707127856025,-518.01224926,0.00042621,7]
[313304011,1707127856034,-500.0,0.00042621,7]
[313304012,1707127856044,-500.0,0.00042621,7]
[313304013,1707127856053,-500.0,0.00042621,7]
[313304014,1707127856062,-560.75031832,0.00042621,7]
[313304015,1707127856071,-182.59879355,0.00042621,7]
[313304016,1707127856080,-498.84017857,0.00042621,7]
[313304017,1707127856089,-500.0,0.00042621,7]
[313304018,1707127856098,-500.0,0.00042621,7]
[313304019,1707127856107,-500.0,0.00042621,7]
[313304020,1707127856116,-500.0,0.00042621,7]
[313304021,1707127856125,-500.0,0.00042621,7]
[313304022,1707127856134,-552.2,0.00042621,7]
[313304023,1707127856144,-500.0,0.00042621,7]
[313304024,1707127856153,-418.3759593,0.00042621,7]
[313304025,1707127856162,-500.0,0.00042621,7]
[313304026,1707127856172,-500.0,0.00042621,7]
[313304027,1707127856186,-207.85410101,0.00042621,7]
[313304028,1707127856197,-500.0,0.00042621,7]
[313304029,1707127856206,-500.0,0.00042621,7]
[313304030,1707127856215,-500.0,0.00042621,7]
[313304031,1707127856224,-500.0,0.00042621,7]
[313304032,1707127856234,-500.0,0.00042621,7]
[313304033,1707127856243,-299.03222251,0.00042621,7]
[313304034,1707127856252,-500.0,0.00042621,7]
[313304035,1707127856263,-522.30017907,0.00042621,7]
[313304036,1707127856273,-500.0,0.00042621,7]
[313304037,1707127856282,-250.35795842,0.00042621,7]
[313304038,1707127856291,-500.0,0.00042621,7]
[313304039,1707127856300,-523.41557805,0.00042621,7]
[313304040,1707127856309,-500.0,0.00042621,7]
[313304041,1707127856318,-500.0,0.00042621,7]
[313304042,1707127856328,-500.0,0.00042621,7]
[313304043,1707127856337,-500.0,0.00042621,7]
[313304044,1707127856346,-534.18337563,0.00042621,7]
[313304045,1707127856355,-1127.36,0.00042621,7]
[313304046,1707127856365,-327.65966844,0.00042621,7]
[313304047,1707127856375,-500.0,0.00042621,7]
[313304048,1707127856384,-1539.46,0.00042621,7]
[313304049,1707127856394,-598.25554574,0.00042621,7]
[313304050,1707127856403,-500.0,0.00042621,7]
[313304051,1707127856412,-500.0,0.00042621,7]
[313304052,1707127856422,-824.07,0.00042621,7]
[313304053,1707127856431,-500.0,0.00042621,7]
[313304054,1707127856441,-500.0,0.00042621,7]
[313304055,1707127856450,-1071.9,0.00042621,7]
[313304056,1707127856460,-500.0,0.00042621,7]
[313304057,1707127856469,-500.0,0.00042621,7]
[313304058,1707127856478,-500.0,0.00042621,7]
[313304059,1707127856487,-1205.02,0.00042621,7]
[313304060,1707127856497,-168.0,0.0004269,2]
[313304061,1707127856508,-500.0,0.0004272,7]
[313304062,1707127856517,-506.33370588,0.0004272,7]
[313304063,1707127856526,-500.0,0.0004272,7]
[313304064,1707127856535,-500.0,0.0004272,7]
[313304065,1707127856544,-161.26829308,0.0004272,7]
[313304066,1707127856553,-180.26561061,0.0004272,7]
[313304067,1707127856563,-150.41043629,0.0004272,7]
[313304068,1707127856572,-500.0,0.0004272,7]
[313304069,1707127856581,-500.0,0.0004272,7]
[313304070,1707127856590,-500.0,0.0004272,7]
[313304071,1707127856599,-500.0,0.0004272,7]
[313304072,1707127856608,-500.0,0.0004272,7]
[313304073,1707127856713,-625.65811949,0.0004272,7]
[313304074,1707127856723,-253.61058326,0.0004272,7]
[313304075,1707127856732,-1000.0,0.0004272,7]
[313304076,1707127856741,-500.0,0.0004272,7]
[313304077,1707127856750,-603.7893198,0.0004272,7]
[313304078,1707127856760,-543.82829889,0.0004272,7]
[313304079,1707127856769,-595.35337648,0.0004272,7]
[313304080,1707127856777,-526.58699363,0.0004272,7]
[313304081,1707127856787,-507.12802052,0.0004272,7]
[313304082,1707127856796,-500.0,0.0004272,7]
[313304083,1707127856805,-564.29092871,0.0004272,7]
[313304084,1707127856814,-600.01654395,0.0004272,7]
[313304085,1707127856822,-500.0,0.0004272,7]
[313304086,1707127856831,-601.77618201,0.0004272,7]
[313304087,1707127856840,-497.83512757,0.0004272,7]
[313304088,1707127856849,-500.0,0.0004272,7]
[313304089,1707127856858,-161.47790954,0.0004272,7]
[313304090,1707127856867,-500.0,0.0004272,7]
[313304091,1707127856876,-500.0,0.0004272,7]
[313304092,1707127856886,-610.5220024,0.0004272,7]
[313304093,1707127856895,-560.01062794,0.0004272,7]
[313304094,1707127856904,-583.08150634,0.0004272,7]
[313304095,1707127856914,-500.0,0.0004272,7]
[313304096,1707127856923,-500.0,0.0004272,7]
[313304097,1707127856932,-500.0,0.0004272,7]
[313304098,1707127856942,-500.0,0.0004272,7]
[313304099,1707127856951,-500.0,0.0004272,7]
[313304100,1707127856960,-500.0,0.0004272,7]
[313304101,1707127856970,-547.18105431,0.0004272,7]
[313304102,1707127856979,-500.0,0.0004272,7]
[313304103,1707127856989,-609.62037569,0.0004272,7]
[313304104,1707127856998,-500.0,0.0004272,7]
[313304105,1707127857008,-568.46678516,0.0004272,7]
[313304106,1707127857018,-500.0,0.0004272,7]
[313304107,1707127857027,-511.09039455,0.0004272,7]
[313304108,1707127857037,-500.0,0.0004272,7]
[313304109,1707127857046,-500.0,0.0004272,7]
[313304110,1707127857056,-500.0,0.0004272,7]
[313304111,1707127857065,-291.9520744,0.0004272,7]
[313304112,1707127857074,-340.58891754,0.0004272,7]
[313304113,1707127857083,-607.03094305,0.0004272,7]
[313304114,1707127857093,-641.30775651,0.0004272,2]
[313304115,1707127857102,-500.0,0.0004272,7]
[313304116,1707127857111,-611.0535856,0.0004272,7]
[313304117,1707127857121,-500.0,0.0004272,7]
[313304118,1707127857130,-523.03924225,0.0004272,7]
[313304119,1707127857139,-500.0,0.0004272,7]
[313304120,1707127857148,-520.24560856,0.0004272,7]
[313304121,1707127857157,-500.0,0.0004272,7]
[313304122,1707127857167,-500.0,0.0004272,7]
[313304123,1707127857177,-500.0,0.0004272,7]
[313304124,1707127857188,-186.57282823,0.0004272,7]
[313304125,1707127857197,-500.0,0.0004272,7]
[313304126,1707127857207,-507.35712074,0.0004272,7]
[313304127,1707127857215,-633.09823229,0.0004272,7]
[313304128,1707127857226,-157.90213606,0.0004272,7]
[313304129,1707127857235,-500.0,0.0004272,7]
[313304130,1707127857245,-500.0,0.0004272,7]
[313304131,1707127857255,-519.4947279,0.0004272,7]
[313304132,1707127857266,-500.0,0.0004272,7]
[313304133,1707127857276,-500.0,0.0004272,7]
[313304134,1707127857287,-500.0,0.0004272,7]
[313304135,1707127857297,-500.0,0.0004272,7]
[313304136,1707127857308,-646.76057884,0.0004272,7]
[313304137,1707127857318,-151.30657932,0.0004272,7]
[313304138,1707127857329,-500.0,0.0004272,7]
[313304139,1707127857339,-513.17428031,0.0004272,7]
[313304140,1707127857350,-500.0,0.0004272,7]
[313304141,1707127857361,-500.0,0.0004272,7]
[313304142,1707127857372,-174.46251415,0.0004272,7]
[313304143,1707127857382,-500.0,0.0004272,7]
[313304144,1707127857393,-367.73020117,0.0004272,7]
[313304145,1707127857404,-500.0,0.0004272,7]
[313304146,1707127857415,-536.14203023,0.0004272,7]
[313304147,1707127857426,-546.22393245,0.0004272,7]
[313304148,1707127857437,-241.11561631,0.0004272,7]
[313304149,1707127857447,-375.32547921,0.0004272,7]
[313304150,1707127857457,-500.0,0.0004272,7]
[313304151,1707127857468,-500.0,0.0004272,7]
[313304152,1707127857478,-500.0,0.0004272,7]
[313304153,1707127857489,-500.0,0.0004272,7]
[313304154,1707127857500,-500.0,0.0004272,7]
[313304155,1707127857518,-500.0,0.0004272,7]
[313304156,1707127857529,-500.0,0.0004272,7]
[313304157,1707127857540,-500.0,0.0004272,7]
[313304158,1707127857551,-532.62689744,0.0004272,7]
[313304159,1707127857563,-518.4290094,0.0004272,7]
[313304160,1707127857574,-500.0,0.0004272,7]
[313304161,1707127857586,-500.0,0.0004272,7]
[313304162,1707127857597,-500.0,0.0004272,7]
[313304163,1707127857608,-535.12923945,0.0004272,7]
[313304164,1707127857619,-500.0,0.0004272,7]
[313304165,1707127857630,-500.0,0.0004272,2]
[313304166,1707127857641,-171.77425053,0.0004272,7]
[313304167,1707127857652,-654.83,0.0004272,7]
[313304168,1707127857663,-500.0,0.0004272,2]
[313304169,1707127857674,-500.0,0.0004272,7]
[313304170,1707127857684,-500.0,0.0004272,7]
[313304171,1707127857697,-527.98831664,0.0004272,7]
[313304172,1707127857708,-163.30067414,0.0004272,7]
[313304173,1707127857718,-500.0,0.0004272,7]
[313304174,1707127857728,-500.0,0.0004272,7]
[313304175,1707127857738,-500.0,0.0004272,7]
[313304176,1707127857748,-500.0,0.0004272,7]
[313304177,1707127857761,-500.0,0.0004272,7]
[313304178,1707127857771,-500.0,0.0004272,7]
[313304179,1707127857782,-500.0,0.0004272,7]
[313304180,1707127857792,-500.0,0.0004272,7]
[313304181,1707127857802,-507.53636672,0.0004272,7]
[313304182,1707127857815,-229.40102106,0.0004272,7]
[313304183,1707127857825,-166.11281807,0.0004272,7]
[313304184,1707127857834,-500.0,0.0004272,7]
[313304185,1707127857844,-501.21847742,0.0004272,7]
[313304186,1707127857853,-500.0,0.0004272,7]
[313304187,1707127857862,-541.25928411,0.0004272,7]
[313304188,1707127857871,-500.0,0.0004272,7]
[313304189,1707127857881,-500.0,0.0004272,7]
[313304190,1707127857890,-500.19,0.0004272,7]
[313304191,1707127857899,-500.0,0.0004272,7]
[313304192,1707127857909,-500.0,0.0004272,7]
[313304193,1707127857919,-500.0,0.0004272,7]
[313304194,1707127857928,-500.0,0.0004272,7]
[313304195,1707127857937,-528.06842098,0.0004272,7]
[313304196,1707127857947,-500.0,0.0004272,7]
[313304197,1707127857956,-500.0,0.0004272,7]
[313304198,1707127857966,-500.0,0.0004272,7]
[313304199,1707127857976,-500.0,0.0004272,7]
[313304200,1707127857985,-500.0,0.0004272,7]
[313304201,1707127857994,-500.0,0.0004272,7]
[313304202,1707127858004,-500.0,0.0004272,7]
[313304203,1707127858015,-500.0,0.0004272,7]
[313304204,1707127858025,-500.0,0.0004272,7]
[313304205,1707127858035,-527.55444445,0.0004272,7]
[313304206,1707127858044,-284.06816139,0.0004272,7]
[313304207,1707127858054,-520.89331938,0.0004272,7]
[313304208,1707127858063,-228.27236465,0.0004272,7]
[313304209,1707127858072,-162.69327869,0.0004272,7]
[313304210,1707127858082,-500.0,0.0004272,2]
[313304211,1707127858091,-233.32862863,0.0004272,7]
[313304212,1707127858100,-502.03066902,0.0004272,7]
[313304213,1707127858110,-292.14405063,0.0004272,7]
[313304214,1707127858119,-531.981517,0.0004272,7]
[313304215,1707127858128,-500.0,0.0004272,7]
[313304216,1707127858137,-210.25210854,0.0004272,7]
[313304217,1707127858146,-536.12368123,0.0004272,7]
[313304218,1707127858155,-172.6333729,0.0004272,7]
[313304219,1707127858164,-500.0,0.00042739,7]